fUSD/lending_fUSD_20260702
["ID","MTS","AMOUNT","RATE_DAILY","PERIOD"]
[426875767,1782975038000,-457.5314312,0.00026139,5]
[426875770,1782975038000,-500.0,0.00026252,2]
[426875782,1782975038000,-152.61433426,0.0002646,2]
[426875781,1782975038000,-600.0,0.000264,9]
[426875783,1782975038000,-683.0,0.00026475,5]
[426875790,1782975038000,-1143.66888823,0.00026591,2]
[426875800,1782975038000,-260.95,0.00026701,8]
[426875786,1782975038000,-11728.90636612,0.000265,3]
[426875787,1782975038000,-1300.0,0.000265,9]
[426875788,1782975038000,-1216.97039681,0.00026536,2]
[426875784,1782975038000,-1143.66888823,0.00026482,2]
[426875789,1782975038000,-8601.5539,0.00026591,2]
[426875785,1782975038000,-4908.47,0.000265,2]
[426875791,1782975038000,-668.0,0.00026593,5]
[426875794,1782975038000,-521.36271652,0.00026699,2]
[426875804,1782975038000,-664.0,0.00026705,5]
[426875793,1782975038000,-2500.0,0.000266,2]
[426875795,1782975038000,-500.0,0.00026699,2]
[426875779,1782975038000,-1143.66888823,0.00026374,2]
[426875792,1782975038000,-2000.0,0.000266,9]
[426875777,1782975038000,-350.0,0.00026366,2]
[426875760,1782975038000,-673.0,0.00026081,5]
[426875772,1782975038000,-500.0,0.00026252,2]
[426875743,1782975038000,-870.6563623,0.000258,2]
[426875744,1782975038000,-1201725.48935183,0.000258,2]
[426875745,1782975038000,-161.25,0.00025821,2]
[426875747,1782975038000,-7824.07946281,0.0002583,2]
[426875753,1782975038000,-1137.03976482,0.00026,2]
[426875750,1782975038000,-1216.97039681,0.00025988,2]
[426875751,1782975038000,-613.71456904,0.0002599,2]
[426875748,1782975038000,-1143.66888823,0.00025939,2]
[426875746,1782975038000,-1143.66888823,0.0002583,2]
[426875749,1782975038000,-150.0,0.00025951,5]
[426875752,1782975038000,-152.0,0.00026,2]
[426875754,1782975038000,-4619.42255365,0.00026,2]
[426875762,1782975038000,-343.49059635,0.00026122,2]
[426875761,1782975038000,-318.533376,0.00026122,2]
[426875758,1782975038000,-248.0,0.00026022,5]
[426875759,1782975038000,-1143.66888823,0.00026047,2]
[426875756,1782975038000,-221.04398295,0.00026,2]
[426875755,1782975038000,-164.0,0.00026,2]
[426875766,1782975038000,-470.28115668,0.00026125,2]
[426875763,1782975038000,-324.93948856,0.00026122,2]
[426875757,1782975038000,-4832.60826487,0.00026,5]
[426875764,1782975038000,-211.97610217,0.00026122,2]
[426875765,1782975038000,-237.99476169,0.00026122,2]
[426875769,1782975038000,-151.0,0.00026217,5]
[426875771,1782975038000,-500.0,0.00026252,2]
[426875780,1782975038000,-28083.93966186,0.000264,2]
[426875803,1782975038000,-151.0,0.00026705,5]
[426875799,1782975038000,-2060.66804278,0.000267,2]
[426875796,1782975038000,-10345.0977,0.000267,2]
[426875828,1782975038000,-500.0,0.00026799,2]
[426875829,1782975038000,-500.0,0.00026799,2]
[426875834,1782975038000,-500.32,0.00026799,2]
[426875836,1782975038000,-500.32,0.00026799,2]
[426875837,1782975038000,-500.32,0.00026799,2]
[426875835,1782975038000,-500.32,0.00026799,2]
[426875830,1782975038000,-500.0,0.00026799,2]
[426875849,1782975038000,-84595.64269131,0.000268,2]
[426875843,1782975038000,-500.0,0.00026799,2]
[426875846,1782975038000,-500.0,0.00026799,2]
[426875839,1782975038000,-803.3,0.00026799,2]
[426875832,1782975038000,-172.24993325,0.00026799,2]
[426875841,1782975038000,-803.3,0.00026799,2]
[426875848,1782975038000,-481.21638394,0.00026799,2]
[426875842,1782975038000,-500.0,0.00026799,2]
[426875844,1782975038000,-500.0,0.00026799,2]
[426875847,1782975038000,-500.0,0.00026799,2]
[426875845,1782975038000,-500.0,0.00026799,2]
[426875852,1782975038000,-251.6748145,0.000268,2]
[426875854,1782975038000,-189.38207532,0.000268,2]
[426875850,1782975038000,-199062.07943725,0.000268,2]
[426875853,1782975038000,-200.0,0.000268,2]
[426875855,1782975038000,-186.81068019,0.000268,2]
[426875851,1782975038000,-598289.23457407,0.000268,2]
[426875840,1782975038000,-803.3,0.00026799,2]
[426875838,1782975038000,-803.3,0.00026799,2]
[426875833,1782975038000,-237.412994,0.00026799,2]
[426875827,1782975038000,-500.0,0.00026799,2]
[426875802,1782975038000,-682.0,0.00026705,5]
[426875801,1782975038000,-350.0,0.00026701,8]
[426875798,1782975038000,-208.68175767,0.000267,2]
[426875807,1782975038000,-674.0,0.00026705,5]
[426875809,1782975038000,-682.0,0.00026718,5]
[426875812,1782975038000,-987.80974205,0.0002679,2]
[426875831,1782975038000,-635.17267934,0.00026799,2]
[426875813,1782975038000,-510.7924467,0.00026791,2]
[426875815,1782975038000,-7458.2017446,0.00026791,2]
[426875806,1782975038000,-683.0,0.00026705,5]
[426875811,1782975038000,-987.80974205,0.0002679,2]
[426875814,1782975038000,-35451.6564045,0.00026791,2]
[426875810,1782975038000,-503.07519474,0.00026773,2]
[426875805,1782975038000,-150.0,0.00026705,5]
[426875819,1782975038000,-151.0,0.00026797,7]
[426875808,1782975038000,-674.0,0.00026707,5]
[426875820,1782975038000,-500.0,0.00026799,2]
[426875823,1782975038000,-500.0,0.00026799,2]
[426875824,1782975038000,-500.0,0.00026799,2]
[426875817,1782975038000,-500.0,0.00026796,2]
[426875816,1782975038000,-2361.8702689,0.00026791,2]
[426875797,1782975038000,-2700.0,0.000267,9]
[426875826,1782975038000,-500.0,0.00026799,2]
[426875822,1782975038000,-500.0,0.00026799,2]
[426875818,1782975038000,-151.0,0.00026797,7]
[426875825,1782975038000,-500.0,0.00026799,2]
[426875821,1782975038000,-500.0,0.00026799,2]
[426875856,1782975039000,-200.0,0.000268,2]
[426875857,1782975039000,-2442934.53491421,0.000268,2]
[426875858,1782975039000,-536.97170335,0.000268,2]
[426875859,1782975039000,-703.79086909,0.000268,2]
[426875860,1782975039000,-2943.68063678,0.00025939,2]
[426875861,1782975039000,-993.65895877,0.00025939,2]
[426875862,1782975039000,-3886.73986726,0.00025939,2]
[426875864,1782975039000,-16683.43525864,0.000268,2]
[426875865,1782975039000,-6410.92848117,0.000268,2]
[426875866,1782975039000,-29999.931705,0.000268,2]
[426875868,1782975039000,-323.311332,0.000268,2]
[426875863,1782975039000,-1143.66888823,0.000267,2]
[426875867,1782975039000,-540.91062944,0.000268,2]
[426875869,1782975040000,-1125.0064358,0.000268,2]
[426875871,1782975040000,-596.298,0.000268,2]
[426875870,1782975040000,-17781.06202026,0.000268,2]
[426875880,1782975042000,-630.73843092,0.000268,2]
[426875878,1782975042000,-1325.04029858,0.000268,2]
[426875879,1782975042000,-32082.53199134,0.000268,2]
[426875881,1782975043000,374.0,0.0003,120]
[426875892,1782975045000,-599.98637625,0.00026047,2]
[426875891,1782975045000,-4575.50086208,0.00026047,2]
[426875895,1782975046000,-3251.26887389,0.000268,2]
[426875893,1782975046000,-2648.59222448,0.00026047,2]
[426875894,1782975046000,-1130.64934626,0.000268,2]
[426875898,1782975097000,-387269.54467099,0.00037085,120]
[426875899,1782975097000,-2105.79,0.00037085,120]
[426875900,1782975097000,-310.18,0.00037085,120]
[426875901,1782975097000,-100000.4904728,0.00037085,120]
[426875902,1782975097000,-4593.07442935,0.00037085,120]
[426875903,1782975098000,-182.72727272,0.00037085,120]
[426875905,1782975098000,-500.0,0.00037085,120]
[426875906,1782975098000,-500.0,0.00037085,120]
[426875907,1782975098000,-500.0,0.00037085,120]
[426875908,1782975098000,-500.0,0.00037085,120]
[426875909,1782975098000,-500.0,0.00037085,120]
[426875910,1782975098000,-485.65160095,0.00037085,120]
[426875911,1782975098000,-217.4,0.00037085,120]
[426875913,1782975098000,-500.0,0.00037085,120]
[426875904,1782975098000,-500.0,0.00037085,120]
[426875915,1782975098000,-500.0,0.00037085,120]
[426875923,1782975098000,-500.0,0.00037085,120]
[426875921,1782975098000,-500.0,0.00037085,120]
[426875922,1782975098000,-500.0,0.00037085,120]
[426875920,1782975098000,-500.0,0.00037085,120]
[426875912,1782975098000,-500.0,0.00037085,120]
[426875917,1782975098000,-500.0,0.00037085,120]
[426875918,1782975098000,-500.0,0.00037085,120]
[426875916,1782975098000,-500.0,0.00037085,120]
[426875914,1782975098000,-500.0,0.00037085,120]
[426875919,1782975098000,-500.0,0.00037085,120]
[426875933,1782975099000,-625.99021145,0.00037085,120]
[426875925,1782975099000,-500.0,0.00037085,120]
[426875926,1782975099000,-500.0,0.00037085,120]
[426875928,1782975099000,-500.0,0.00037085,120]
[426875927,1782975099000,-500.0,0.00037085,120]
[426875929,1782975099000,-500.0,0.00037085,120]
[426875930,1782975099000,-500.0,0.00037085,120]
[426875931,1782975099000,-567.90025531,0.00037085,120]
[426875932,1782975099000,-627.0,0.00037085,120]
[426875924,1782975099000,-500.0,0.00037085,120]
[426875935,1782975099000,-10316.0,0.00037085,120]
[426875937,1782975099000,-5000.0,0.00037085,120]
[426875936,1782975099000,-105000.0,0.00037085,120]
[426875939,1782975099000,-5000.0,0.00037085,120]
[426875938,1782975099000,-5000.0,0.00037085,120]
[426875941,1782975099000,-5000.0,0.00037085,120]
[426875940,1782975099000,-5000.0,0.00037085,120]
[426875942,1782975099000,-5000.0,0.00037085,120]
[426875943,1782975099000,-5000.0,0.00037085,120]
[426875944,1782975099000,-5000.0,0.00037085,120]
[426875945,1782975099000,-1589.0,0.00037085,120]
[426875934,1782975099000,-1589.0,0.00037085,120]
[426875952,1782975100000,-270.899726,0.00037085,120]
[426875953,1782975100000,-270.899726,0.00037085,120]
[426875950,1782975100000,-194.37287467,0.00037085,120]
[426875951,1782975100000,-270.899726,0.00037085,120]
[426875955,1782975100000,-270.899726,0.00037085,120]
[426875947,1782975100000,-500.0,0.00037085,120]
[426875948,1782975100000,-500.0,0.00037085,120]
[426875946,1782975100000,-500.0,0.00037085,120]
[426875949,1782975100000,-500.0,0.00037085,120]
[426875954,1782975100000,-270.899726,0.00037085,120]
[426875961,1782975100000,-270.899726,0.00037085,120]
[426875957,1782975100000,-270.899726,0.00037085,120]
[426875966,1782975100000,-270.899726,0.00037085,120]
[426875965,1782975100000,-270.899726,0.00037085,120]
[426875964,1782975100000,-270.899726,0.00037085,120]
[426875963,1782975100000,-270.899726,0.00037085,120]
[426875956,1782975100000,-270.899726,0.00037085,120]
[426875967,1782975100000,-270.899726,0.00037085,120]
[426875959,1782975100000,-270.899726,0.00037085,120]
[426875960,1782975100000,-270.899726,0.00037085,120]
[426875958,1782975100000,-270.899726,0.00037085,120]
[426875962,1782975100000,-270.899726,0.00037085,120]
[426875968,1782975101000,-270.899726,0.00037085,120]
[426875969,1782975101000,-270.899726,0.00037085,120]
[426875971,1782975101000,-270.899726,0.00037085,120]
[426875970,1782975101000,-270.899726,0.00037085,120]
[426875972,1782975101000,-270.899726,0.00037085,120]
[426875973,1782975101000,-270.899726,0.00037085,120]
[426875974,1782975101000,-270.899726,0.00037085,120]
[426875975,1782975101000,-270.899726,0.00037085,120]
[426875978,1782975101000,-270.899726,0.00037085,120]
[426875977,1782975101000,-270.899726,0.00037085,120]
[426875976,1782975101000,-270.899726,0.00037085,120]
[426875979,1782975101000,-270.899726,0.00037085,120]
[426875989,1782975101000,-270.899726,0.00037085,120]
[426875980,1782975101000,-270.899726,0.00037085,120]
[426875986,1782975101000,-270.899726,0.00037085,120]
[426875987,1782975101000,-270.899726,0.00037085,120]
[426875985,1782975101000,-270.899726,0.00037085,120]
[426875988,1782975101000,-270.899726,0.00037085,120]
[426875983,1782975101000,-270.899726,0.00037085,120]
[426875981,1782975101000,-270.899726,0.00037085,120]
[426875982,1782975101000,-270.899726,0.00037085,120]
[426875984,1782975101000,-270.899726,0.00037085,120]
[426875997,1782975102000,-270.899726,0.00037085,120]
[426875990,1782975102000,-270.899726,0.00037085,120]
[426875991,1782975102000,-270.899726,0.00037085,120]
[426875993,1782975102000,-270.899726,0.00037085,120]
[426875992,1782975102000,-270.899726,0.00037085,120]
[426875994,1782975102000,-270.899726,0.00037085,120]
[426875995,1782975102000,-270.899726,0.00037085,120]
[426875996,1782975102000,-270.899726,0.00037085,120]
[426875998,1782975102000,-270.899726,0.00037085,120]
[426876008,1782975102000,-270.899726,0.00037085,120]
[426876000,1782975102000,-270.899726,0.00037085,120]
[426876001,1782975102000,-270.899726,0.00037085,120]
[426876002,1782975102000,-270.899726,0.00037085,120]
[426876003,1782975102000,-270.899726,0.00037085,120]
[426876004,1782975102000,-270.899726,0.00037085,120]
[426876005,1782975102000,-270.899726,0.00037085,120]
[426876006,1782975102000,-270.899726,0.00037085,120]
[426876007,1782975102000,-270.899726,0.00037085,120]
[426875999,1782975102000,-270.899726,0.00037085,120]
[426876009,1782975102000,-270.899726,0.00037085,120]
[426876016,1782975103000,-270.899726,0.00037085,120]
[426876015,1782975103000,-270.899726,0.00037085,120]
[426876014,1782975103000,-270.899726,0.00037085,120]
[426876018,1782975103000,-270.899726,0.00037085,120]
[426876011,1782975103000,-270.899726,0.00037085,120]
[426876010,1782975103000,-270.899726,0.00037085,120]
[426876012,1782975103000,-270.899726,0.00037085,120]
[426876017,1782975103000,-270.899726,0.00037085,120]
[426876013,1782975103000,-270.899726,0.00037085,120]
[426876019,1782975103000,-270.899726,0.00037085,120]
[426876027,1782975103000,-270.899727,0.00037085,120]
[426876025,1782975103000,-270.899727,0.00037085,120]
[426876024,1782975103000,-270.899727,0.00037085,120]
[426876020,1782975103000,-270.899726,0.00037085,120]
[426876023,1782975103000,-270.899727,0.00037085,120]
[426876021,1782975103000,-270.899726,0.00037085,120]
[426876022,1782975103000,-270.899726,0.00037085,120]
[426876026,1782975103000,-270.899727,0.00037085,120]
[426876028,1782975104000,-270.899727,0.00037085,120]
[426876029,1782975104000,-270.899727,0.00037085,120]
[426876031,1782975104000,-270.899727,0.00037085,120]
[426876030,1782975104000,-271.383476,0.00037085,120]
[426876032,1782975104000,-271.383476,0.00037085,120]
[426876033,1782975104000,-270.899727,0.00037085,120]
[426876035,1782975104000,-270.899727,0.00037085,120]
[426876034,1782975104000,-271.383476,0.00037085,120]
[426876039,1782975104000,-271.383476,0.00037085,120]
[426876038,1782975104000,-270.899727,0.00037085,120]
[426876040,1782975104000,-270.899727,0.00037085,120]
[426876041,1782975104000,-271.383476,0.00037085,120]
[426876042,1782975104000,-270.899727,0.00037085,120]
[426876043,1782975104000,-271.383476,0.00037085,120]
[426876044,1782975104000,-270.899727,0.00037085,120]
[426876045,1782975104000,-271.383476,0.00037085,120]
[426876036,1782975104000,-271.383476,0.00037085,120]
[426876047,1782975105000,-271.383476,0.00037085,120]
[426876046,1782975105000,-270.899727,0.00037085,120]
[426876048,1782975105000,-270.899727,0.00037085,120]
[426876050,1782975105000,-270.899727,0.00037085,120]
[426876049,1782975105000,-271.383476,0.00037085,120]
[426876051,1782975105000,-266.062244,0.00037085,120]
[426876052,1782975105000,-7843.82422633,0.00037085,120]
[426876053,1782975105000,-500.0,0.00037085,120]
[426876055,1782975105000,-500.0,0.00037085,120]
[426876056,1782975105000,-500.0,0.00037085,120]
[426876057,1782975105000,-500.0,0.00037085,120]
[426876059,1782975105000,-500.0,0.00037085,120]
[426876058,1782975105000,-500.0,0.00037085,120]
[426876060,1782975105000,-500.0,0.00037085,120]
[426876054,1782975105000,-500.0,0.00037085,120]
[426876062,1782975106000,-500.0,0.00037085,120]
[426876063,1782975106000,-500.0,0.00037085,120]
[426876064,1782975106000,-500.0,0.00037085,120]
[426876065,1782975106000,-500.0,0.00037085,120]
[426876061,1782975106000,-500.0,0.00037085,120]
[426876067,1782975106000,-500.0,0.00037085,120]
[426876068,1782975106000,-500.0,0.00037085,120]
[426876069,1782975106000,-500.0,0.00037085,120]
[426876070,1782975106000,-556.20264304,0.00037085,120]
[426876066,1782975106000,-500.0,0.00037085,120]
[426876071,1782975107000,1787.42,0.00037085,120]
[426876074,1782975108000,500.0,0.00028999,120]
[426876073,1782975108000,500.0,0.00028771,120]
[426876072,1782975108000,500.0,0.00027899,120]
[426876075,1782975109000,500.0,0.00029899,120]
[426876076,1782975109000,500.0,0.00029999,120]
[426876079,1782975109000,500.0,0.00030089,120]
[426876078,1782975109000,500.0,0.00030089,120]
[426876080,1782975109000,635.17267934,0.00030124,120]
[426876077,1782975109000,500.0,0.00030088,120]
[426876086,1782975154000,5000.0,0.00037085,120]
[426876085,1782975154000,5000.0,0.00037085,120]
[426876090,1782975324000,-769.88,0.00022988,2]
[426876089,1782975324000,-150.0,0.00022956,2]
[426876092,1782975324000,-769.88,0.00023254,2]
[426876088,1782975324000,-769.88,0.00022722,2]
[426876093,1782975324000,-150.0,0.00023411,2]
[426876095,1782975324000,-769.88,0.00023785,2]
[426876091,1782975324000,-150.0,0.00023184,2]
[426876094,1782975324000,-769.88,0.0002352,2]
[426876096,1782975324000,-150.0,0.00023918,2]
[426876116,1782975325000,-769.88,0.00025114,2]
[426876115,1782975325000,-490.35,0.00025,2]
[426876114,1782975325000,-736.02,0.00025,2]
[426876113,1782975325000,-1718.71,0.00025,2]
[426876112,1782975325000,-13326.69,0.00025,2]
[426876110,1782975325000,-46645.91,0.00025,2]
[426876108,1782975325000,-6836.9661,0.00024899,2]
[426876107,1782975325000,-769.88,0.00024848,2]
[426876105,1782975325000,-177.14,0.00024658,2]
[426876106,1782975325000,-177.6,0.00024658,2]
[426876104,1782975325000,-168.82572,0.00024658,2]
[426876103,1782975325000,-153.87,0.00024658,2]
[426876101,1782975325000,-375.89,0.00024583,2]
[426876100,1782975325000,-769.88,0.00024583,2]
[426876102,1782975325000,-1298.49,0.00024608,2]
[426876099,1782975325000,-500.0,0.00024541,2]
[426876097,1782975325000,-769.88,0.00024051,2]
[426876098,1782975325000,-769.88,0.00024317,2]
[426876117,1782975325000,-263.62180779,0.00025426,2]
[426876119,1782975325000,-240.52496309,0.0002557,2]
[426876109,1782975325000,-152.61433426,0.00024967,2]
[426876118,1782975325000,-189.38207532,0.0002546,2]
[426876139,1782975325000,-481.04992618,0.00026126,2]
[426876120,1782975325000,-272.48804732,0.0002557,2]
[426876135,1782975325000,-20040.0,0.00026,2]
[426876138,1782975325000,-304.2232487,0.00026126,2]
[426876137,1782975325000,-379.31551742,0.00026125,2]
[426876134,1782975325000,-151.85929504,0.00025999,2]
[426876133,1782975325000,-150.0,0.0002596,5]
[426876132,1782975325000,-1384.84178834,0.00025811,2]
[426876130,1782975325000,-500.0,0.00025799,2]
[426876131,1782975325000,-1157.81051582,0.00025811,2]
[426876136,1782975325000,-150.0,0.00026,2]
[426876127,1782975325000,-500.0,0.00025799,2]
[426876128,1782975325000,-500.0,0.00025799,2]
[426876123,1782975325000,-10345.0977,0.000257,2]
[426876121,1782975325000,-8601.5539,0.00025621,2]
[426876124,1782975325000,-500.0,0.00025799,2]
[426876111,1782975325000,-19990.53,0.00025,2]
[426876125,1782975325000,-500.0,0.00025799,2]
[426876129,1782975325000,-500.0,0.00025799,2]
[426876122,1782975325000,-2500.0,0.000257,2]
[426876126,1782975325000,-500.0,0.00025799,2]
[426876140,1782975326000,-544.97609463,0.00026126,2]
[426876141,1782975326000,-500.0,0.00026126,2]
[426876142,1782975326000,-7824.07946281,0.00026156,2]
[426876143,1782975326000,-7824.07946281,0.00026265,2]
[426876144,1782975326000,-683.0,0.0002628,5]
[426876146,1782975326000,-176.20735755,0.00026342,2]
[426876148,1782975326000,-7824.07946281,0.00026374,2]
[426876150,1782975326000,-663.0,0.00026388,5]
[426876151,1782975326000,-17905.34749273,0.00026426,2]
[426876149,1782975326000,-1730.85635401,0.00026382,2]
[426876145,1782975326000,-673.0,0.00026327,5]
[426876147,1782975326000,-6271.19937337,0.00026362,2]
[426876152,1782975329000,597.0,0.00037085,120]
[426876156,1782975375000,52552.0602,0.000249,120]
[426876159,1782975412000,1000000.0,0.00037085,120]
[426876162,1782975424000,500.0,0.00027899,120]
[426876165,1782975439000,113597.29,0.00037085,120]
[426876167,1782975442000,63734.7299,0.000249,120]
[426876171,1782975581000,20000.0,0.00037082,120]
[426876173,1782975611000,679265.75,0.00037082,120]
[426876176,1782975726000,50000.0,0.00037082,120]
[426876177,1782975730000,50000.0,0.00037082,120]
[426876179,1782975805000,2825.90678663,0.00037082,120]
[426876180,1782975839000,593.41864824,0.00037082,120]
[426876188,1782976111000,-150.0,0.00020436,2]
[426876190,1782976111000,-150.0,0.0002172,2]
[426876192,1782976111000,-500.0,0.00022391,2]
[426876191,1782976111000,-205.2003604,0.00022292,2]
[426876193,1782976111000,-500.0,0.00022391,2]
[426876187,1782976111000,-188.614024,0.00020426,2]
[426876196,1782976111000,-296.98976102,0.0002244,2]
[426876194,1782976111000,-500.0,0.00022391,2]
[426876200,1782976111000,-3288.49003627,0.00023058,2]
[426876199,1782976111000,-3288.49003627,0.00023058,2]
[426876189,1782976111000,-150.0,0.00021068,2]
[426876197,1782976111000,-227.57239401,0.00023058,2]
[426876198,1782976111000,-3288.49003627,0.00023058,2]
[426876195,1782976111000,-420.11349684,0.00022391,2]
[426876203,1782976112000,-644.94118572,0.00023058,2]
[426876202,1782976112000,-3288.49003627,0.00023058,2]
[426876201,1782976112000,-3288.49003627,0.00023058,2]
[426876204,1782976127000,291.0,0.00037085,120]
[426876206,1782976130000,396.1652592,0.00037085,120]
[426876205,1782976130000,396.1652592,0.00037085,120]
[426876208,1782976131000,396.1652592,0.00037085,120]
[426876207,1782976131000,396.1652592,0.00037085,120]
[426876209,1782976152000,668.71,0.00037085,120]
[426876212,1782976153000,487.0,0.00037085,120]
[426876211,1782976153000,487.0,0.00037085,120]
[426876210,1782976153000,487.0,0.00037085,120]
[426876213,1782976154000,795.46,0.00037085,120]
[426876219,1782976162000,1783.0,0.00037085,120]
[426876218,1782976162000,1572.0,0.00037085,120]
[426876222,1782976163000,1563.0,0.00037085,120]
[426876227,1782976176000,500.0,0.00037086,120]
[426876226,1782976176000,353.85438548,0.00037086,120]
[426876228,1782976177000,162.13813922,0.00037086,120]
[426876231,1782976182000,407.95,0.00037086,120]
[426876230,1782976182000,407.95,0.00037086,120]
[426876229,1782976182000,407.96,0.00037086,120]
[426876233,1782976183000,597.0,0.00037086,120]
[426876232,1782976183000,407.95,0.00037086,120]
[426876236,1782976187000,500.0,0.00037086,120]
[426876235,1782976187000,500.0,0.00037086,120]
[426876234,1782976187000,500.0,0.00037086,120]
[426876238,1782976188000,500.0,0.00037086,120]
[426876237,1782976188000,500.0,0.00037086,120]
[426876239,1782976188000,500.0,0.00037086,120]
[426876240,1782976188000,191.50549013,0.00037086,120]
[426876243,1782976189000,500.0,0.00037086,120]
[426876242,1782976189000,500.0,0.00037086,120]
[426876241,1782976189000,500.0,0.00037086,120]
[426876244,1782976190000,268.67123557,0.00037086,120]
[426876246,1782976203000,270.20572848,0.00037086,120]
[426876245,1782976203000,500.0,0.00037086,120]
[426876250,1782976204000,500.0,0.00037086,120]
[426876249,1782976204000,437.83685021,0.00037086,120]
[426876248,1782976204000,500.0,0.00037086,120]
[426876247,1782976204000,500.0,0.00037086,120]
[426876251,1782976205000,281.68519608,0.00037086,120]
[426876253,1782976209000,500.0,0.00037086,120]
[426876252,1782976209000,500.0,0.00037086,120]
[426876254,1782976210000,500.0,0.00037086,120]
[426876256,1782976210000,500.0,0.00037086,120]
[426876255,1782976210000,500.0,0.00037086,120]
[426876257,1782976210000,500.0,0.00037086,120]
[426876261,1782976211000,500.0,0.00037086,120]
[426876260,1782976211000,1340.42,0.00037086,120]
[426876259,1782976211000,500.0,0.00037086,120]
[426876258,1782976211000,500.0,0.00037086,120]
[426876264,1782976212000,323.72823569,0.00037086,120]
[426876263,1782976212000,500.0,0.00037086,120]
[426876262,1782976212000,500.0,0.00037086,120]
[426876265,1782976213000,210.1567161,0.00037086,120]
[426876266,1782976214000,270.899726,0.00037086,120]
[426876268,1782976215000,500.0,0.00037086,120]
[426876267,1782976215000,270.899726,0.00037086,120]
[426876269,1782976215000,217.4,0.00037086,120]
[426876271,1782976215000,500.0,0.00037086,120]
[426876272,1782976215000,500.0,0.00037086,120]
[426876273,1782976215000,270.899726,0.00037086,120]
[426876274,1782976215000,257.18906317,0.00037086,120]
[426876270,1782976215000,270.899726,0.00037086,120]
[426876281,1782976216000,270.899726,0.00037086,120]
[426876280,1782976216000,500.0,0.00037086,120]
[426876279,1782976216000,500.0,0.00037086,120]
[426876278,1782976216000,270.899726,0.00037086,120]
[426876277,1782976216000,500.0,0.00037086,120]
[426876276,1782976216000,270.899726,0.00037086,120]
[426876275,1782976216000,500.0,0.00037086,120]
[426876282,1782976217000,500.0,0.00037086,120]
[426876283,1782976217000,270.899726,0.00037086,120]
[426876286,1782976217000,270.899726,0.00037086,120]
[426876287,1782976217000,270.899726,0.00037086,120]
[426876284,1782976217000,371.65,0.00037086,120]
[426876289,1782976218000,270.899726,0.00037086,120]
[426876290,1782976218000,270.899726,0.00037086,120]
[426876288,1782976218000,270.899726,0.00037086,120]
[426876293,1782976219000,270.899726,0.00037086,120]
[426876292,1782976219000,270.899726,0.00037086,120]
[426876291,1782976219000,270.899726,0.00037086,120]
[426876295,1782976220000,337.85709118,0.00037086,120]
[426876294,1782976220000,270.899726,0.00037086,120]
[426876297,1782976220000,270.899726,0.00037086,120]
[426876298,1782976220000,270.899726,0.00037086,120]
[426876296,1782976220000,270.899726,0.00037086,120]
[426876300,1782976221000,270.899726,0.00037086,120]
[426876299,1782976221000,270.899726,0.00037086,120]
[426876301,1782976222000,270.899726,0.00037086,120]
[426876304,1782976223000,270.899726,0.00037086,120]
[426876303,1782976223000,276.59925803,0.00037086,120]
[426876302,1782976223000,270.899726,0.00037086,120]